[Event "Titled Tuesday Blitz February 15 Late 2022"]
[White "Khater, Sherif"]
[Black "Niemann, Hans Moke"]
[WhiteFideId "2034280"]
[BlackFideId "2093596"]
[WhiteElo "2547"]
[BlackElo "2636"]
[Result "0-1"]
[Round "03"]
[TimeControl "180+1"]
[Date "2022.02.16"]
[WhiteClock "0:00:35"]
[BlackClock "0:01:24"]

1. b3 {[%clk 0:03:00]}  e5 {[%clk 0:02:58]} 2. Bb2 {[%clk 0:03:00]}  Nc6 {[%clk 0:02:57]} 3. e3 {[%clk 0:03:01]}  d5 {[%clk 0:02:56]} 4. Bb5 {[%clk 0:03:01]}  f6 {[%clk 0:02:54]} 5. d4 {[%clk 0:02:56]}  e4 {[%clk 0:02:44]} 6. Ne2 {[%clk 0:02:56]}  Bd7 {[%clk 0:02:42]} 7. O-O {[%clk 0:02:54]}  a6 {[%clk 0:02:38]} 8. Bxc6 {[%clk 0:02:55]}  bxc6 {[%clk 0:02:37]} 9. Ba3 {[%clk 0:02:51]}  Bd6 {[%clk 0:02:37]} 10. Bxd6 {[%clk 0:02:51]}  cxd6 {[%clk 0:02:38]} 11. Nd2 {[%clk 0:02:49]}  Nh6 {[%clk 0:02:37]} 12. c4 {[%clk 0:02:49]}  O-O {[%clk 0:02:37]} 13. cxd5 {[%clk 0:02:50]}  cxd5 {[%clk 0:02:38]} 14. b4 {[%clk 0:02:50]}  Be6 {[%clk 0:02:37]} 15. Nf4 {[%clk 0:02:47]}  Bf7 {[%clk 0:02:36]} 16. Qb3 {[%clk 0:02:48]}  Qd7 {[%clk 0:02:32]} 17. Rfc1 {[%clk 0:02:47]}  Qf5 {[%clk 0:02:28]} 18. Rc7 {[%clk 0:02:45]}  g5 {[%clk 0:02:24]} 19. Ne2 {[%clk 0:02:45]}  Ng4 {[%clk 0:02:21]} 20. Rf1 {[%clk 0:02:41]}  Rfc8 {[%clk 0:02:21]} 21. Ng3 {[%clk 0:02:35]}  Qe6 {[%clk 0:02:18]} 22. Rfc1 {[%clk 0:02:31]}  Rxc7 {[%clk 0:02:18]} 23. Rxc7 {[%clk 0:02:32]}  h5 {[%clk 0:02:17]} 24. h3 {[%clk 0:02:27]}  Nh6 {[%clk 0:02:16]} 25. Qa4 {[%clk 0:02:19]}  h4 {[%clk 0:02:14]} 26. Ngf1 {[%clk 0:02:12]}  g4 {[%clk 0:02:13]} 27. Qd7 {[%clk 0:02:08]}  gxh3 {[%clk 0:02:09]} 28. gxh3 {[%clk 0:02:06]}  Qxd7 {[%clk 0:01:50]} 29. Rxd7 {[%clk 0:02:07]}  Be6 {[%clk 0:01:50]} 30. Rxd6 {[%clk 0:02:06]}  Kf7 {[%clk 0:01:51]} 31. Nb3 {[%clk 0:02:03]}  Bxh3 {[%clk 0:01:49]} 32. f4 {[%clk 0:00:55]}  Rg8+ {[%clk 0:01:27]} 33. Kf2 {[%clk 0:00:55]}  Ng4+ {[%clk 0:01:26]} 34. Ke1 {[%clk 0:00:50]}  Bxf1 {[%clk 0:01:26]} 35. Kxf1 {[%clk 0:00:50]}  Nxe3+ {[%clk 0:01:27]} 36. Ke2 {[%clk 0:00:50]}  h3 {[%clk 0:01:27]} 37. Rd7+ {[%clk 0:00:44]}  Kg6 {[%clk 0:01:26]} 38. Kxe3 {[%clk 0:00:40]}  h2 {[%clk 0:01:25]} 39. f5+ {[%clk 0:00:35]}  Kh6 {[%clk 0:01:24]} 0-1


[Site "https://www.chess.com"]

[Event "Titled Tuesday Blitz February 15 Late 2022"]
[White "Kim, Sergey"]
[Black "Toncheva, Nadya"]
[WhiteFideId "13700570"]
[BlackFideId "2924056"]
[WhiteElo "2603"]
[BlackElo "1920"]
[Result "1/2-1/2"]
[Round "03"]
[TimeControl "180+1"]
[Date "2022.02.16"]
[WhiteClock "0:00:39"]
[BlackClock "0:00:09"]

1. d4 {[%clk 0:02:56]}  Nf6 {[%clk 0:02:59]} 2. c4 {[%clk 0:02:56]}  e6 {[%clk 0:02:59]} 3. Nc3 {[%clk 0:02:55]}  c5 {[%clk 0:02:59]} 4. d5 {[%clk 0:02:55]}  exd5 {[%clk 0:03:00]} 5. cxd5 {[%clk 0:02:56]}  d6 {[%clk 0:03:00]} 6. e4 {[%clk 0:02:57]}  g6 {[%clk 0:03:00]} 7. Nge2 {[%clk 0:02:57]}  Bg7 {[%clk 0:02:59]} 8. Ng3 {[%clk 0:02:58]}  O-O {[%clk 0:02:58]} 9. Be2 {[%clk 0:02:58]}  Na6 {[%clk 0:02:51]} 10. O-O {[%clk 0:02:58]}  Nc7 {[%clk 0:02:51]} 11. a4 {[%clk 0:02:58]}  a6 {[%clk 0:02:46]} 12. Bf4 {[%clk 0:02:58]}  Qe7 {[%clk 0:02:43]} 13. Qd2 {[%clk 0:02:57]}  Re8 {[%clk 0:02:40]} 14. Bh6 {[%clk 0:02:57]}  Bh8 {[%clk 0:02:34]} 15. f4 {[%clk 0:02:54]}  Ng4 {[%clk 0:02:28]} 16. Bxg4 {[%clk 0:02:53]}  Bxg4 {[%clk 0:02:29]} 17. f5 {[%clk 0:02:51]}  Be5 {[%clk 0:02:19]} 18. Bg5 {[%clk 0:02:46]}  f6 {[%clk 0:02:14]} 19. Bf4 {[%clk 0:02:46]}  b5 {[%clk 0:01:49]} 20. h3 {[%clk 0:02:38]}  Bh5 {[%clk 0:01:48]} 21. Nxh5 {[%clk 0:02:26]}  gxh5 {[%clk 0:01:49]} 22. Ne2 {[%clk 0:02:24]}  bxa4 {[%clk 0:01:34]} 23. Rxa4 {[%clk 0:02:22]}  Rab8 {[%clk 0:01:34]} 24. Bxe5 {[%clk 0:02:15]}  Qxe5 {[%clk 0:01:27]} 25. Nc3 {[%clk 0:02:11]}  Rb4 {[%clk 0:01:07]} 26. Ra2 {[%clk 0:02:00]}  Nb5 {[%clk 0:01:03]} 27. Rxa6 {[%clk 0:01:57]}  Nxc3 {[%clk 0:01:00]} 28. bxc3 {[%clk 0:01:57]}  Rxe4 {[%clk 0:00:59]} 29. Ra7 {[%clk 0:01:35]}  Re2 {[%clk 0:00:42]} 30. Qh6 {[%clk 0:01:32]}  Qe3+ {[%clk 0:00:42]} 31. Qxe3 {[%clk 0:01:33]}  R8xe3 {[%clk 0:00:43]} 32. Rb1 {[%clk 0:01:31]}  Re1+ {[%clk 0:00:33]} 33. Rxe1 {[%clk 0:01:29]}  Rxe1+ {[%clk 0:00:34]} 34. Kh2 {[%clk 0:01:25]}  Re5 {[%clk 0:00:32]} 35. c4 {[%clk 0:01:26]}  Rxf5 {[%clk 0:00:30]} 36. Rd7 {[%clk 0:01:25]}  Rf4 {[%clk 0:00:29]} 37. Rxd6 {[%clk 0:01:25]}  Rxc4 {[%clk 0:00:29]} 38. Rxf6 {[%clk 0:01:26]}  Rd4 {[%clk 0:00:27]} 39. Rd6 {[%clk 0:01:26]}  c4 {[%clk 0:00:26]} 40. Rc6 {[%clk 0:01:26]}  Rxd5 {[%clk 0:00:26]} 41. Rxc4 {[%clk 0:01:26]}  Kg7 {[%clk 0:00:26]} 42. Kg3 {[%clk 0:01:26]}  Kg6 {[%clk 0:00:25]} 43. Kh4 {[%clk 0:01:24]}  Rd6 {[%clk 0:00:25]} 44. Rc5 {[%clk 0:01:21]}  h6 {[%clk 0:00:23]} 45. Ra5 {[%clk 0:01:19]}  Re6 {[%clk 0:00:23]} 46. Rb5 {[%clk 0:01:18]}  Rd6 {[%clk 0:00:22]} 47. Rxh5 {[%clk 0:01:17]}  Rd4+ {[%clk 0:00:22]} 48. g4 {[%clk 0:01:17]}  Rd6 {[%clk 0:00:22]} 49. Ra5 {[%clk 0:01:15]}  Re6 {[%clk 0:00:22]} 50. Ra3 {[%clk 0:01:14]}  Rd6 {[%clk 0:00:22]} 51. Kg3 {[%clk 0:01:14]}  Rc6 {[%clk 0:00:21]} 52. Re3 {[%clk 0:01:12]}  Rd6 {[%clk 0:00:21]} 53. Kf4 {[%clk 0:01:12]}  Rb6 {[%clk 0:00:19]} 54. h4 {[%clk 0:01:12]}  Rb4+ {[%clk 0:00:19]} 55. Re4 {[%clk 0:01:12]}  Rb6 {[%clk 0:00:19]} 56. Rd4 {[%clk 0:01:11]}  Rf6+ {[%clk 0:00:19]} 57. Ke4 {[%clk 0:01:10]}  Ra6 {[%clk 0:00:18]} 58. Ke5 {[%clk 0:01:09]}  Ra5+ {[%clk 0:00:17]} 59. Rd5 {[%clk 0:01:09]}  Ra4 {[%clk 0:00:18]} 60. Rd6+ {[%clk 0:01:09]}  Kg7 {[%clk 0:00:17]} 61. Kf5 {[%clk 0:01:08]}  Ra5+ {[%clk 0:00:18]} 62. Ke6 {[%clk 0:01:08]}  Ra4 {[%clk 0:00:18]} 63. Kf5 {[%clk 0:01:05]}  Ra5+ {[%clk 0:00:19]} 64. Ke4 {[%clk 0:01:03]}  Ra4+ {[%clk 0:00:19]} 65. Rd4 {[%clk 0:01:04]}  Ra5 {[%clk 0:00:19]} 66. Kf4 {[%clk 0:01:04]}  Kg6 {[%clk 0:00:19]} 67. Rd6+ {[%clk 0:01:04]}  Kg7 {[%clk 0:00:20]} 68. Re6 {[%clk 0:01:03]}  Ra4+ {[%clk 0:00:20]} 69. Re4 {[%clk 0:01:03]}  Ra5 {[%clk 0:00:20]} 70. Re5 {[%clk 0:01:02]}  Ra4+ {[%clk 0:00:21]} 71. Kf5 {[%clk 0:01:03]}  Kf7 {[%clk 0:00:20]} 72. Rb5 {[%clk 0:00:59]}  Kg8 {[%clk 0:00:17]} 73. Rb6 {[%clk 0:00:56]}  Kg7 {[%clk 0:00:15]} 74. Rg6+ {[%clk 0:00:56]}  Kh7 {[%clk 0:00:15]} 75. Re6 {[%clk 0:00:55]}  Ra5+ {[%clk 0:00:15]} 76. Re5 {[%clk 0:00:55]}  Ra4 {[%clk 0:00:15]} 77. Re7+ {[%clk 0:00:54]}  Kg8 {[%clk 0:00:14]} 78. h5 {[%clk 0:00:51]}  Ra5+ {[%clk 0:00:13]} 79. Kf6 {[%clk 0:00:50]}  Ra6+ {[%clk 0:00:08]} 80. Re6 {[%clk 0:00:50]}  Ra4 {[%clk 0:00:07]} 81. Kf5 {[%clk 0:00:41]}  Ra5+ {[%clk 0:00:07]} 82. Kg6 {[%clk 0:00:37]}  Rg5+ {[%clk 0:00:06]} 83. Kxh6 {[%clk 0:00:38]}  Rxg4 {[%clk 0:00:06]} 84. Rg6+ {[%clk 0:00:38]}  Rxg6+ {[%clk 0:00:06]} 85. hxg6 {[%clk 0:00:38]}  Kh8 {[%clk 0:00:06]} 86. Kg5 {[%clk 0:00:38]}  Kg7 {[%clk 0:00:06]} 87. Kf5 {[%clk 0:00:38]}  Kg8 {[%clk 0:00:07]} 88. Kf6 {[%clk 0:00:38]}  Kf8 {[%clk 0:00:07]} 89. Kg5 {[%clk 0:00:37]}  Kg7 {[%clk 0:00:08]} 90. Kh5 {[%clk 0:00:37]}  Kg8 {[%clk 0:00:08]} 91. Kh6 {[%clk 0:00:38]}  Kh8 {[%clk 0:00:09]} 92. g7+ {[%clk 0:00:38]}  Kg8 {[%clk 0:00:09]} 93. Kg6 {[%clk 0:00:39]} 1/2-1/2


[Site "https://www.chess.com"]

[Event "Titled Tuesday Blitz February 15 Late 2022"]
[White "Klukin, Kirill"]
[Black "Sjugirov, Sanan"]
[WhiteFideId "24199273"]
[BlackFideId "4189302"]
[WhiteElo "2324"]
[BlackElo "2602"]
[Result "1/2-1/2"]
[Round "03"]
[TimeControl "180+1"]
[Date "2022.02.15"]
[WhiteClock "0:00:03"]
[BlackClock "0:00:03"]

1. d4 {[%clk 0:03:00]}  Nf6 {[%clk 0:02:59]} 2. Nf3 {[%clk 0:02:57]}  e6 {[%clk 0:02:59]} 3. e3 {[%clk 0:02:57]}  b6 {[%clk 0:02:59]} 4. Bd3 {[%clk 0:02:57]}  Bb7 {[%clk 0:03:00]} 5. O-O {[%clk 0:02:58]}  d5 {[%clk 0:02:59]} 6. b3 {[%clk 0:02:57]}  Bd6 {[%clk 0:02:59]} 7. Bb2 {[%clk 0:02:58]}  Nbd7 {[%clk 0:02:56]} 8. Nbd2 {[%clk 0:02:58]}  O-O {[%clk 0:02:52]} 9. Qe2 {[%clk 0:02:58]}  Ne4 {[%clk 0:02:51]} 10. Ne5 {[%clk 0:02:55]}  f5 {[%clk 0:02:30]} 11. f4 {[%clk 0:02:25]}  Nxd2 {[%clk 0:02:22]} 12. Qxd2 {[%clk 0:02:25]}  Nxe5 {[%clk 0:02:21]} 13. fxe5 {[%clk 0:02:25]}  Be7 {[%clk 0:02:21]} 14. a4 {[%clk 0:02:22]}  a5 {[%clk 0:02:19]} 15. Ba3 {[%clk 0:02:22]}  Bxa3 {[%clk 0:02:17]} 16. Rxa3 {[%clk 0:02:23]}  c5 {[%clk 0:02:15]} 17. c3 {[%clk 0:02:18]}  Ba6 {[%clk 0:02:11]} 18. Bxa6 {[%clk 0:02:15]}  Rxa6 {[%clk 0:02:12]} 19. Raa1 {[%clk 0:02:14]}  Ra7 {[%clk 0:02:12]} 20. Rac1 {[%clk 0:02:10]}  Rd7 {[%clk 0:01:50]} 21. Rfd1 {[%clk 0:02:09]}  Qh4 {[%clk 0:01:34]} 22. Qf2 {[%clk 0:02:05]}  Qe7 {[%clk 0:01:30]} 23. Qe2 {[%clk 0:01:52]}  Qg5 {[%clk 0:01:23]} 24. c4 {[%clk 0:01:48]}  dxc4 {[%clk 0:01:22]} 25. Rxc4 {[%clk 0:01:46]}  cxd4 {[%clk 0:01:14]} 26. Rdxd4 {[%clk 0:01:45]}  Rxd4 {[%clk 0:01:11]} 27. Rxd4 {[%clk 0:01:44]}  h6 {[%clk 0:01:01]} 28. g3 {[%clk 0:01:40]}  Rc8 {[%clk 0:00:53]} 29. Kg2 {[%clk 0:01:26]}  Rc5 {[%clk 0:00:49]} 30. h4 {[%clk 0:00:49]}  Qe7 {[%clk 0:00:48]} 31. Rd6 {[%clk 0:00:46]}  Qb7+ {[%clk 0:00:42]} 32. Kh2 {[%clk 0:00:41]}  Rxe5 {[%clk 0:00:41]} 33. Qc4 {[%clk 0:00:39]}  Qe4 {[%clk 0:00:26]} 34. Qc8+ {[%clk 0:00:18]}  Kh7 {[%clk 0:00:25]} 35. Rd8 {[%clk 0:00:19]}  Rd5 {[%clk 0:00:08]} 36. Rh8+ {[%clk 0:00:19]}  Kg6 {[%clk 0:00:09]} 37. Qe8+ {[%clk 0:00:20]}  Kf6 {[%clk 0:00:09]} 38. Qf8+ {[%clk 0:00:15]}  Kg6 {[%clk 0:00:09]} 39. Qe8+ {[%clk 0:00:10]}  Kf6 {[%clk 0:00:09]} 40. Qf8+ {[%clk 0:00:05]}  Ke5 {[%clk 0:00:04]} 41. Qxg7+ {[%clk 0:00:05]}  Kd6 {[%clk 0:00:04]} 42. Qf8+ {[%clk 0:00:03]}  Ke5 {[%clk 0:00:02]} 43. Qg7+ {[%clk 0:00:04]}  Kd6 {[%clk 0:00:03]} 44. Qf8+ {[%clk 0:00:04]}  Ke5 {[%clk 0:00:03]} 45. Qg7+ {[%clk 0:00:03]} 1/2-1/2


[Site "https://www.chess.com"]

[Event "Titled Tuesday Blitz February 15 Late 2022"]
[White "Koepke, Christian"]
[Black "Cori T., Deysi"]
[WhiteFideId "4655737"]
[BlackFideId "3801934"]
[WhiteElo "2180"]
[BlackElo "2350"]
[Result "0-1"]
[Round "03"]
[TimeControl "180+1"]
[Date "2022.02.16"]
[WhiteClock "0:00:03"]
[BlackClock "0:00:14"]

1. e4 {[%clk 0:02:56]}  e6 {[%clk 0:02:59]} 2. b3 {[%clk 0:02:55]}  d5 {[%clk 0:03:00]} 3. Bb2 {[%clk 0:02:53]}  Nf6 {[%clk 0:02:58]} 4. e5 {[%clk 0:02:52]}  Nfd7 {[%clk 0:02:58]} 5. f4 {[%clk 0:02:52]}  c5 {[%clk 0:02:58]} 6. Qg4 {[%clk 0:02:52]}  Nc6 {[%clk 0:02:58]} 7. Nf3 {[%clk 0:02:51]}  h5 {[%clk 0:02:50]} 8. Qg3 {[%clk 0:02:47]}  Ne7 {[%clk 0:02:48]} 9. Be2 {[%clk 0:02:39]}  Nf5 {[%clk 0:02:47]} 10. Qh3 {[%clk 0:02:40]}  Rh6 {[%clk 0:02:42]} 11. Nc3 {[%clk 0:02:29]}  Rb8 {[%clk 0:02:38]} 12. Nb5 {[%clk 0:02:08]}  a6 {[%clk 0:02:11]} 13. Nd6+ {[%clk 0:02:06]}  Nxd6 {[%clk 0:02:11]} 14. exd6 {[%clk 0:02:07]}  Nf6 {[%clk 0:02:11]} 15. O-O-O {[%clk 0:01:53]}  Bxd6 {[%clk 0:02:11]} 16. Ne5 {[%clk 0:01:50]}  Qa5 {[%clk 0:02:09]} 17. Kb1 {[%clk 0:01:50]}  Ne4 {[%clk 0:02:04]} 18. Qe3 {[%clk 0:01:32]}  f6 {[%clk 0:02:01]} 19. Ng6 {[%clk 0:00:55]}  Kd7 {[%clk 0:01:15]} 20. f5 {[%clk 0:00:46]}  e5 {[%clk 0:01:11]} 21. Qd3 {[%clk 0:00:32]}  c4 {[%clk 0:00:33]} 22. Qe3 {[%clk 0:00:30]}  Kc7 {[%clk 0:00:28]} 23. bxc4 {[%clk 0:00:20]}  Bxf5 {[%clk 0:00:28]} 24. Nh4 {[%clk 0:00:18]}  Be6 {[%clk 0:00:28]} 25. Bf3 {[%clk 0:00:14]}  Bc5 {[%clk 0:00:26]} 26. Qe1 {[%clk 0:00:10]}  Rd8 {[%clk 0:00:22]} 27. d3 {[%clk 0:00:10]}  Qxe1 {[%clk 0:00:21]} 28. Rhxe1 {[%clk 0:00:11]}  Ng5 {[%clk 0:00:18]} 29. Bxd5 {[%clk 0:00:10]}  Bxd5 {[%clk 0:00:18]} 30. cxd5 {[%clk 0:00:11]}  Rxd5 {[%clk 0:00:19]} 31. Nf5 {[%clk 0:00:11]}  Rg6 {[%clk 0:00:19]} 32. Ne7 {[%clk 0:00:11]}  Bxe7 {[%clk 0:00:19]} 33. c4 {[%clk 0:00:10]}  Rd7 {[%clk 0:00:18]} 34. h4 {[%clk 0:00:08]}  Ne6 {[%clk 0:00:18]} 35. Re2 {[%clk 0:00:09]}  Nf4 {[%clk 0:00:18]} 36. Red2 {[%clk 0:00:08]}  Bb4 {[%clk 0:00:18]} 37. Rc2 {[%clk 0:00:08]}  Rxd3 {[%clk 0:00:18]} 38. Rxd3 {[%clk 0:00:08]}  Nxd3 {[%clk 0:00:19]} 39. a3 {[%clk 0:00:09]}  Bc5 {[%clk 0:00:17]} 40. Bc3 {[%clk 0:00:09]}  Rg4 {[%clk 0:00:16]} 41. Rd2 {[%clk 0:00:08]}  e4 {[%clk 0:00:16]} 42. Ba5+ {[%clk 0:00:07]}  b6 {[%clk 0:00:16]} 43. Bc3 {[%clk 0:00:08]}  Rxh4 {[%clk 0:00:16]} 44. Re2 {[%clk 0:00:06]}  Rg4 {[%clk 0:00:16]} 45. Kc2 {[%clk 0:00:06]}  Kc6 {[%clk 0:00:15]} 46. Kb3 {[%clk 0:00:04]}  f5 {[%clk 0:00:15]} 47. Bb4 {[%clk 0:00:05]}  g6 {[%clk 0:00:14]} 48. Bxc5 {[%clk 0:00:04]}  Nxc5+ {[%clk 0:00:14]} 49. Kc3 {[%clk 0:00:04]}  Rg3+ {[%clk 0:00:14]} 50. Kd4 {[%clk 0:00:04]}  Kd6 {[%clk 0:00:15]} 51. Re3 {[%clk 0:00:03]}  Ne6+ {[%clk 0:00:14]} 0-1


[Site "https://www.chess.com"]

[Event "Titled Tuesday Blitz February 15 Late 2022"]
[White "Krishnan, Varun"]
[Black "Erdogdu, Mert"]
[WhiteFideId "5054508"]
[BlackFideId "6301495"]
[WhiteElo "2480"]
[BlackElo "2485"]
[Result "1-0"]
[Round "03"]
[TimeControl "180+1"]
[Date "2022.02.16"]
[WhiteClock "0:00:18"]
[BlackClock "0:00:18"]

1. e4 {[%clk 0:03:00]}  c5 {[%clk 0:03:00]} 2. Nf3 {[%clk 0:03:00]}  d6 {[%clk 0:03:00]} 3. d4 {[%clk 0:03:01]}  cxd4 {[%clk 0:02:58]} 4. Nxd4 {[%clk 0:03:01]}  Nf6 {[%clk 0:02:57]} 5. Nc3 {[%clk 0:03:02]}  a6 {[%clk 0:02:57]} 6. a4 {[%clk 0:03:00]}  e6 {[%clk 0:02:57]} 7. Be2 {[%clk 0:03:00]}  Be7 {[%clk 0:02:57]} 8. O-O {[%clk 0:03:00]}  O-O {[%clk 0:02:57]} 9. Be3 {[%clk 0:03:00]}  Qc7 {[%clk 0:02:57]} 10. f4 {[%clk 0:03:00]}  Nc6 {[%clk 0:02:57]} 11. Qe1 {[%clk 0:03:00]}  Nxd4 {[%clk 0:02:50]} 12. Bxd4 {[%clk 0:03:01]}  e5 {[%clk 0:02:50]} 13. Be3 {[%clk 0:02:56]}  exf4 {[%clk 0:02:49]} 14. Bxf4 {[%clk 0:02:56]}  Be6 {[%clk 0:02:50]} 15. Qg3 {[%clk 0:02:55]}  Qb6+ {[%clk 0:02:34]} 16. Kh1 {[%clk 0:02:50]}  Rfc8 {[%clk 0:02:14]} 17. e5 {[%clk 0:02:46]}  dxe5 {[%clk 0:02:03]} 18. Bxe5 {[%clk 0:02:47]}  Ne8 {[%clk 0:02:02]} 19. Bd3 {[%clk 0:02:29]}  Bd6 {[%clk 0:01:48]} 20. Ne4 {[%clk 0:02:01]}  Bxe5 {[%clk 0:01:40]} 21. Qxe5 {[%clk 0:02:00]}  Qc7 {[%clk 0:01:31]} 22. Qh5 {[%clk 0:01:55]}  h6 {[%clk 0:01:29]} 23. Rae1 {[%clk 0:01:41]}  Rd8 {[%clk 0:01:27]} 24. Ng5 {[%clk 0:01:34]}  Rd5 {[%clk 0:00:47]} 25. Nxe6 {[%clk 0:00:54]}  Rxh5 {[%clk 0:00:47]} 26. Nxc7 {[%clk 0:00:54]}  Nxc7 {[%clk 0:00:47]} 27. Re7 {[%clk 0:00:54]}  Ne6 {[%clk 0:00:30]} 28. Rexf7 {[%clk 0:00:47]}  b5 {[%clk 0:00:24]} 29. Re7 {[%clk 0:00:37]}  Nc5 {[%clk 0:00:20]} 30. Bg6 {[%clk 0:00:25]}  Rg5 {[%clk 0:00:20]} 31. Bf7+ {[%clk 0:00:25]}  Kh8 {[%clk 0:00:20]} 32. a5 {[%clk 0:00:23]}  Rd8 {[%clk 0:00:19]} 33. h4 {[%clk 0:00:22]}  Rg4 {[%clk 0:00:19]} 34. h5 {[%clk 0:00:22]}  Ne4 {[%clk 0:00:19]} 35. Re1 {[%clk 0:00:20]}  Ng3+ {[%clk 0:00:17]} 36. Kg1 {[%clk 0:00:19]}  Nf5 {[%clk 0:00:17]} 37. R7e5 {[%clk 0:00:18]}  Nh4 {[%clk 0:00:17]} 38. Re8+ {[%clk 0:00:17]}  Rxe8 {[%clk 0:00:17]} 39. Rxe8+ {[%clk 0:00:17]}  Kh7 {[%clk 0:00:18]} 40. Bg8+ {[%clk 0:00:18]}  Kh8 {[%clk 0:00:18]} 41. Be6+ {[%clk 0:00:18]} 1-0


[Site "https://www.chess.com"]

[Event "Titled Tuesday Blitz February 15 Late 2022"]
[White "Krstulovic, Alex"]
[Black "Jobava, Baadur"]
[WhiteFideId "760056"]
[BlackFideId "13601520"]
[WhiteElo "2193"]
[BlackElo "2617"]
[Result "0-1"]
[Round "03"]
[TimeControl "180+1"]
[Date "2022.02.15"]
[WhiteClock "0:01:47"]
[BlackClock "0:02:30"]

1. e4 {[%clk 0:03:00]}  c6 {[%clk 0:02:59]} 2. d4 {[%clk 0:02:42]}  d5 {[%clk 0:03:00]} 3. exd5 {[%clk 0:02:42]}  cxd5 {[%clk 0:03:00]} 4. Bd3 {[%clk 0:02:42]}  Nf6 {[%clk 0:03:00]} 5. Bf4 {[%clk 0:02:42]}  Bg4 {[%clk 0:02:59]} 6. Nf3 {[%clk 0:02:41]}  Nc6 {[%clk 0:02:58]} 7. c3 {[%clk 0:02:41]}  e6 {[%clk 0:02:59]} 8. Nbd2 {[%clk 0:02:41]}  Bd6 {[%clk 0:02:59]} 9. Bxd6 {[%clk 0:02:41]}  Qxd6 {[%clk 0:03:00]} 10. Qb3 {[%clk 0:02:41]}  O-O {[%clk 0:02:58]} 11. O-O {[%clk 0:02:42]}  Rab8 {[%clk 0:02:56]} 12. Rae1 {[%clk 0:02:41]}  Bxf3 {[%clk 0:02:55]} 13. Nxf3 {[%clk 0:02:41]}  Nd7 {[%clk 0:02:55]} 14. Re3 {[%clk 0:02:38]}  b5 {[%clk 0:02:55]} 15. a3 {[%clk 0:02:37]}  Na5 {[%clk 0:02:50]} 16. Qc2 {[%clk 0:02:32]}  Nc4 {[%clk 0:02:50]} 17. Bxc4 {[%clk 0:02:22]}  bxc4 {[%clk 0:02:51]} 18. Ng5 {[%clk 0:02:22]}  Nf6 {[%clk 0:02:38]} 19. Rf3 {[%clk 0:02:22]}  h6 {[%clk 0:02:35]} 20. Rxf6 {[%clk 0:02:09]}  hxg5 {[%clk 0:02:35]} 21. Rf3 {[%clk 0:02:08]}  Rb7 {[%clk 0:02:33]} 22. Rh3 {[%clk 0:02:05]}  g6 {[%clk 0:02:33]} 23. Rg3 {[%clk 0:02:06]}  Rfb8 {[%clk 0:02:32]} 24. Rb1 {[%clk 0:01:52]}  Qxa3 {[%clk 0:02:31]} 25. Rxg5 {[%clk 0:01:48]}  Rxb2 {[%clk 0:02:30]} 26. Rxg6+ {[%clk 0:01:47]}  Kf8 {[%clk 0:02:30]} 0-1


[Site "https://www.chess.com"]

[Event "Titled Tuesday Blitz February 15 Late 2022"]
[White "Krzyzanowski, Marcin"]
[Black "Martirosyan, Haik M."]
[WhiteFideId "1132199"]
[BlackFideId "13306553"]
[WhiteElo "2396"]
[BlackElo "2735"]
[Result "0-1"]
[Round "03"]
[TimeControl "180+1"]
[Date "2022.02.15"]
[WhiteClock "0:00:03"]
[BlackClock "0:00:53"]

1. Nf3 {[%clk 0:03:00]}  e6 {[%clk 0:03:00]} 2. c4 {[%clk 0:02:57]}  Nf6 {[%clk 0:03:00]} 3. g3 {[%clk 0:02:57]}  c5 {[%clk 0:03:01]} 4. Bg2 {[%clk 0:02:57]}  Be7 {[%clk 0:03:01]} 5. O-O {[%clk 0:02:57]}  O-O {[%clk 0:03:02]} 6. d4 {[%clk 0:02:56]}  cxd4 {[%clk 0:03:03]} 7. Nxd4 {[%clk 0:02:56]}  d6 {[%clk 0:03:04]} 8. Nc3 {[%clk 0:02:57]}  a6 {[%clk 0:03:04]} 9. Be3 {[%clk 0:02:55]}  Nbd7 {[%clk 0:03:05]} 10. Rc1 {[%clk 0:02:56]}  Qc7 {[%clk 0:03:04]} 11. b3 {[%clk 0:02:55]}  Ne5 {[%clk 0:03:04]} 12. h3 {[%clk 0:02:54]}  Bd7 {[%clk 0:03:04]} 13. Qd2 {[%clk 0:02:54]}  Rac8 {[%clk 0:03:03]} 14. Rfd1 {[%clk 0:02:53]}  Qb8 {[%clk 0:03:04]} 15. a4 {[%clk 0:02:52]}  Rfd8 {[%clk 0:03:03]} 16. a5 {[%clk 0:02:46]}  Be8 {[%clk 0:03:01]} 17. Nf3 {[%clk 0:02:44]}  Nxf3+ {[%clk 0:02:59]} 18. Bxf3 {[%clk 0:02:45]}  Bc6 {[%clk 0:02:58]} 19. Bb6 {[%clk 0:02:41]}  Re8 {[%clk 0:02:58]} 20. Bxc6 {[%clk 0:02:36]}  Rxc6 {[%clk 0:02:57]} 21. Bd4 {[%clk 0:02:28]}  Qc7 {[%clk 0:02:54]} 22. Na4 {[%clk 0:02:17]}  Nd7 {[%clk 0:02:54]} 23. Nb6 {[%clk 0:02:17]}  Nxb6 {[%clk 0:02:52]} 24. Bxb6 {[%clk 0:02:17]}  Qc8 {[%clk 0:02:51]} 25. e4 {[%clk 0:02:17]}  Bd8 {[%clk 0:02:47]} 26. Bxd8 {[%clk 0:02:16]}  Rxd8 {[%clk 0:02:47]} 27. Qd4 {[%clk 0:02:14]}  Qc7 {[%clk 0:02:45]} 28. b4 {[%clk 0:02:14]}  Rc8 {[%clk 0:02:45]} 29. Kg2 {[%clk 0:02:09]}  h5 {[%clk 0:02:38]} 30. Rd2 {[%clk 0:02:07]}  Rxc4 {[%clk 0:02:15]} 31. Rxc4 {[%clk 0:02:04]}  Qxc4 {[%clk 0:02:15]} 32. Qxc4 {[%clk 0:02:05]}  Rxc4 {[%clk 0:02:16]} 33. Rxd6 {[%clk 0:02:06]}  Rxb4 {[%clk 0:02:15]} 34. Kf3 {[%clk 0:02:05]}  Rb5 {[%clk 0:02:02]} 35. Rd7 {[%clk 0:02:05]}  g5 {[%clk 0:02:02]} 36. h4 {[%clk 0:01:48]}  g4+ {[%clk 0:01:56]} 37. Ke3 {[%clk 0:01:32]}  Kg7 {[%clk 0:01:56]} 38. Rc7 {[%clk 0:01:30]}  Kg6 {[%clk 0:01:49]} 39. Re7 {[%clk 0:01:28]}  e5 {[%clk 0:01:45]} 40. Rc7 {[%clk 0:01:26]}  Rb3+ {[%clk 0:01:39]} 41. Ke2 {[%clk 0:01:26]}  Rb4 {[%clk 0:01:35]} 42. Ke3 {[%clk 0:01:26]}  Rb5 {[%clk 0:01:35]} 43. Ke2 {[%clk 0:01:26]}  Rxa5 {[%clk 0:01:32]} 44. Rxb7 {[%clk 0:01:26]}  Ra2+ {[%clk 0:01:25]} 45. Kf1 {[%clk 0:01:19]}  a5 {[%clk 0:01:24]} 46. Rb6+ {[%clk 0:01:18]}  Kg7 {[%clk 0:01:23]} 47. Ra6 {[%clk 0:01:17]}  a4 {[%clk 0:01:22]} 48. Kg2 {[%clk 0:01:13]}  a3 {[%clk 0:01:22]} 49. Ra5 {[%clk 0:01:13]}  Kf6 {[%clk 0:01:19]} 50. Ra6+ {[%clk 0:01:10]}  Ke7 {[%clk 0:01:19]} 51. Ra7+ {[%clk 0:01:07]}  Ke6 {[%clk 0:01:15]} 52. Ra6+ {[%clk 0:01:06]}  Ke7 {[%clk 0:01:15]} 53. Kg1 {[%clk 0:01:05]}  Kd7 {[%clk 0:01:05]} 54. Kg2 {[%clk 0:01:04]}  Kc7 {[%clk 0:01:03]} 55. Ra5 {[%clk 0:00:31]}  Kb6 {[%clk 0:01:00]} 56. Ra8 {[%clk 0:00:12]}  Kc5 {[%clk 0:01:00]} 57. Ra7 {[%clk 0:00:09]}  Kd4 {[%clk 0:00:57]} 58. Ra4+ {[%clk 0:00:09]}  Kd3 {[%clk 0:00:56]} 59. Kg1 {[%clk 0:00:08]}  Kc3 {[%clk 0:00:56]} 60. Kg2 {[%clk 0:00:06]}  Kb3 {[%clk 0:00:55]} 61. Ra5 {[%clk 0:00:06]}  Rd2 {[%clk 0:00:55]} 62. Rb5+ {[%clk 0:00:07]}  Kc4 {[%clk 0:00:53]} 63. Ra5 {[%clk 0:00:07]}  a2 {[%clk 0:00:53]} 64. Ra7 {[%clk 0:00:05]}  Kb3 {[%clk 0:00:53]} 65. Rb7+ {[%clk 0:00:03]}  Kc2 {[%clk 0:00:53]} 0-1


[Site "https://www.chess.com"]